bitfinex-derivatives/quotes_SOLF0:USTF0_20240816
["timestamp","ask_amount","ask_price","bid_price","bid_amount"]
[1723846424396,4.8980901,140.08,139.95,1.3841]
[1723846424901,3.5694,140.04,139.95,1.3841]
[1723846425106,0.05432115,140.03,140.0,0.05394658]
[1723846425398,0.05432115,140.03,140.01,3.5699]
[1723846426192,0.05432115,140.03,140.0,0.05394658]
[1723846427705,0.05432115,140.03,140.02,3.5697]
[1723846437305,0.05432115,140.03,140.01,3.5698]
[1723846440209,0.05432115,140.03,140.02,3.5697]
[1723846440598,1.4055,140.1,140.0,3.57224383]
[1723846440807,1.4055,140.1,140.05,3.5687]
[1723846440808,3.568,140.09,140.05,3.5687]
[1723846441308,3.568,140.09,140.06,3.5687]
[1723846441701,3.61704957,140.09,140.06,3.61548252]
[1723846443810,10.96,140.08,140.06,0.04678252]
[1723846444015,10.96,140.07,140.06,0.04678252]
[1723846444402,14.5284,140.07,140.06,0.04678252]
[1723846446821,54.8,140.07,139.96,1.2659]
[1723846447108,54.8,140.07,139.97,10.96]
[1723846447109,10.96,140.04,139.97,10.96]
[1723846447301,10.96,140.04,140.0,3.5699]
[1723846447508,3.5696,140.03,140.0,3.5699]
[1723846447909,3.62077597,140.03,140.0,3.61815544]
[1723846448617,0.05117597,140.03,140.01,3.5699]
[1723846448914,0.05117597,140.03,140.0,0.04825544]
[1723846449304,0.05117597,140.03,140.0,3.61825544]
[1723846449707,0.05117597,140.03,140.0,0.04825544]
[1723846449909,0.05117597,140.03,140.01,3.5698]
[1723846450713,0.05117597,140.03,140.02,3.5697]
[1723846453122,0.05117597,140.03,140.01,3.5698]
[1723846460227,0.05117597,140.03,140.02,3.5697]
[1723846465437,0.05117597,140.03,140.0,3.61835544]
[1723846465728,0.05117597,140.03,140.0,0.04825544]
[1723846466119,3.62077597,140.03,140.0,3.61835544]
[1723846466321,0.05117597,140.03,140.0,0.04825544]
[1723846466721,0.05117597,140.03,140.01,3.5699]
[1723846474424,0.05117597,140.03,140.02,3.5697]
[1723846476432,0.05117597,140.03,140.01,3.5698]
[1723846476630,0.05117597,140.03,140.0,0.04825544]
[1723846476838,11.01117597,140.03,140.0,0.04825544]
[1723846477038,10.96,140.01,140.0,0.04825544]
[1723846477536,18.9099,140.01,140.0,0.04825544]
[1723846483135,3.5707,139.99,139.96,3.5711]
[1723846483339,10.96,139.98,139.96,3.5711]
[1723846484034,11.01171778,139.98,139.96,3.62522182]
[1723846484235,14.58261778,139.98,139.96,0.05412182]
[1723846485129,14.531,139.97,139.96,0.05412182]
[1723846486347,3.571,139.97,139.96,0.05412182]
[1723846487935,14.531,139.97,139.96,0.05412182]
[1723846488538,18.911,139.97,139.96,0.05412182]
[1723846488746,3.5717,139.94,139.88,10.96]
[1723846489352,3.5717,139.94,139.91,3.5723]
[1723846489731,3.6255671,139.94,139.91,3.62446783]
[1723846491652,0.0538671,139.94,139.92,3.5722]
[1723846493650,0.0538671,139.94,139.93,3.572]
[1723846499553,3.62142931,139.97,139.94,3.6242965]
[1723846499749,3.62142931,139.97,139.95,3.5715]
[1723846500354,14.5312,139.96,139.94,0.0526965]
[1723846500746,10.96,139.96,139.94,3.6242965]
[1723846501540,14.5312,139.96,139.94,3.6242965]
[1723846501951,10.96,139.96,139.94,3.6242965]
[1723846504456,0.05032931,139.97,139.94,0.0526965]
[1723846504661,0.05032931,139.97,139.94,3.63019725]
[1723846504859,0.05032931,139.97,139.96,10.96]
[1723846505065,15.34,140.02,139.96,10.96]
[1723846505548,15.34,140.02,139.98,3.5705]
[1723846505549,10.96,140.01,139.98,3.5705]
[1723846506259,11.00558071,140.01,139.98,3.62322242]
[1723846507562,14.57568071,140.01,139.98,3.62322242]
[1723846507954,11.00558071,140.01,139.98,0.05272242]
[1723846508150,14.5304,139.99,139.98,0.05272242]
[1723846508553,10.96,139.99,139.98,0.05272242]
[1723846509059,14.5304,139.99,139.98,0.05272242]
[1723846509764,10.96,139.99,139.98,0.05272242]
[1723846511758,14.5305,139.99,139.98,0.05272242]
[1723846513864,10.96,139.99,139.98,0.05272242]
[1723846515364,14.5304,139.99,139.98,0.05272242]
[1723846515756,10.96,140.0,139.98,0.05272242]
[1723846516257,14.5302,140.0,139.98,3.62342242]
[1723846516562,14.5302,140.0,139.98,0.05272242]
[1723846526568,3.5704,139.99,139.98,0.05272242]
[1723846526764,14.5304,139.99,139.98,0.05272242]
[1723846529972,10.96,139.99,139.98,0.05272242]
[1723846530176,8.4792,140.0,139.98,0.05272242]
[1723846530365,4.42558071,140.01,139.98,0.05272242]
[1723846530682,0.04558071,140.01,139.98,0.05272242]
[1723846531070,0.04558071,140.01,139.99,3.5703]
[1723846532079,11.00558071,140.01,139.99,3.5703]
[1723846533678,14.57558071,140.01,139.98,3.62332242]
[1723846533883,11.00558071,140.01,139.98,0.05272242]
[1723846534881,11.00558071,140.01,139.99,3.5704]
[1723846537877,11.00558071,140.01,139.98,0.05272242]
[1723846538084,10.96,140.0,139.98,0.05272242]
[1723846538284,14.5304,140.0,139.98,0.05272242]
[1723846538482,10.96,139.99,139.98,0.05272242]
[1723846539785,14.5304,139.99,139.98,0.05272242]
[1723846539982,10.96,139.99,139.98,0.05272242]
[1723846542891,14.5304,139.99,139.98,0.05272242]
[1723846546493,10.96,139.99,139.98,0.05272242]
[1723846547092,14.5304,139.99,139.98,0.05272242]
[1723846547293,22.487,139.99,139.91,1.3381]
[1723846547595,10.96,139.96,139.91,1.3381]
[1723846547890,14.5313,139.96,139.93,3.5718]
[1723846548382,14.58310105,139.96,139.93,3.62012322]
[1723846550795,0.05180105,139.96,139.93,0.04832322]
[1723846551192,0.05180105,139.96,139.94,10.96]
[1723846551495,0.05180105,139.96,139.95,3.5715]
[1723846551683,0.05180105,139.96,139.95,14.5315]
[1723846552397,0.05180105,139.96,139.95,3.5715]
[1723846554596,0.05180105,139.96,139.94,3.5716]
[1723846554794,0.05180105,139.96,139.93,0.04832322]
[1723846554991,0.05180105,139.96,139.94,3.5715]
[1723846556892,11.01180105,139.96,139.94,3.5715]
[1723846557092,10.96,139.95,139.93,0.04832322]
[1723846557991,14.5316,139.95,139.93,0.04832322]
[1723846559798,10.96,139.95,139.93,0.04832322]
[1723846560102,18.9117,139.94,139.93,0.04832322]
[1723846561003,59.18,139.94,139.78,7.1513]
[1723846561204,10.96,139.9,139.82,12.2558]
[1723846561395,15.34,139.9,139.82,15.87606372]
[1723846561595,18.9129,139.9,139.87,3.5735]
[1723846562097,18.96570294,139.9,139.87,3.62723326]
[1723846563003,3.573,139.89,139.87,0.05373326]
[1723846563202,10.96,139.88,139.87,0.05373326]
[1723846563696,14.5333,139.88,139.87,0.05373326]
[1723846565005,18.9133,139.88,139.87,0.05373326]
[1723846576508,3.5742,139.85,139.78,15.34]
[1723846576704,14.5342,139.85,139.79,3.53180562]
[1723846577611,0.04660864,139.83,139.82,3.5746]
[1723846583005,11.00660864,139.83,139.82,3.5746]
[1723846584415,11.00660864,139.83,139.81,0.04602767]
[1723846584716,10.96,139.82,139.81,0.04602767]
[1723846585105,14.5348,139.82,139.81,0.04602767]
[1723846589711,18.107,139.82,139.71,13.6617]
[1723846589912,10.96,139.79,139.71,13.6617]
[1723846590107,18.9157,139.79,139.71,13.6617]
[1723846590510,18.9157,139.79,139.76,3.5762]
[1723846590714,18.96490541,139.79,139.76,3.62268096]
[1723846591220,18.96490541,139.79,139.76,0.04648096]
[1723846591221,3.5759,139.78,139.76,0.04648096]
[1723846592524,10.96,139.77,139.76,0.04648096]
[1723846596113,0.04920541,139.79,139.76,0.04648096]
[1723846596608,0.04920541,139.79,139.77,3.5761]
[1723846597419,0.04920541,139.79,139.78,3.5758]
[1723846611526,0.04920541,139.79,139.77,3.576]
[1723846611731,10.96,139.78,139.76,0.04648096]
[1723846612431,14.5359,139.78,139.76,0.04648096]
[1723846612831,10.96,139.78,139.76,3.62278096]
[1723846617726,10.96,139.78,139.77,3.5761]
[1723846618130,14.58490541,139.79,139.77,3.5761]
[1723846621341,10.96,139.78,139.76,3.62268096]
[1723846622331,10.96,139.78,139.77,3.5761]
[1723846622532,0.04920541,139.79,139.76,0.04648096]
[1723846622937,0.04920541,139.79,139.78,3.5758]
[1723846624438,7.147,139.87,139.77,10.96]
[1723846624630,15.34,139.86,139.78,10.96]
[1723846624841,15.34,139.86,139.8,10.96]
[1723846625540,15.34,139.86,139.82,0.04554174]
[1723846625740,0.04587992,139.84,139.83,3.5745]
[1723846631343,6.38932735,139.92,139.88,3.573]
[1723846631552,10.96,139.9,139.84,10.96]
[1723846632142,10.96,139.9,139.84,14.59188714]
[1723846632344,10.96,139.9,139.88,3.5731]
[1723846632745,11.00719199,139.9,139.88,3.5731]
[1723846634142,10.96,139.89,139.86,0.04881334]
[1723846634343,14.5331,139.89,139.86,0.04881334]
[1723846634655,10.96,139.89,139.86,0.04881334]
[1723846635337,10.96,139.89,139.87,3.5735]
[1723846636645,10.96,139.89,139.86,0.04881334]
[1723846636845,10.96,139.87,139.86,0.04881334]
[1723846638539,14.5335,139.87,139.86,0.04881334]
[1723846641058,10.96,139.87,139.86,0.04881334]
[1723846641453,10.96,139.88,139.86,0.04881334]
[1723846641650,10.96,139.88,139.86,3.62261334]
[1723846643954,10.96,139.87,139.86,0.04881334]
[1723846644550,14.5335,139.87,139.86,0.04881334]
[1723846646365,18.9135,139.87,139.86,0.04881334]
[1723846647365,3.5741,139.85,139.78,15.34]
[1723846647549,10.96,139.84,139.78,15.34]
[1723846648365,10.96,139.84,139.82,3.5746]
[1723846648561,11.01105823,139.84,139.82,3.5746]
[1723846649760,0.05105823,139.84,139.83,3.5745]
[1723846652264,0.05105823,139.84,139.82,3.5747]
[1723846652959,0.05105823,139.84,139.83,3.5745]
[1723846662369,0.05105823,139.84,139.83,14.5345]
[1723846665082,0.05105823,139.84,139.83,3.5745]
[1723846669273,0.05105823,139.84,139.8,0.04910242]
[1723846671479,0.05105823,139.84,139.82,3.5746]
[1723846676183,0.05105823,139.84,139.83,3.5745]
[1723846688300,0.05105823,139.84,139.82,3.5746]
[1723846688685,0.05105823,139.84,139.8,11.00910242]
[1723846688887,0.05105823,139.84,139.83,3.5745]
[1723846696602,0.05105823,139.84,139.82,3.5746]
[1723846698504,3.62535823,139.84,139.82,3.5746]
[1723846698797,0.05105823,139.84,139.82,3.5746]
[1723846698999,11.01105823,139.84,139.8,0.04910242]
[1723846699192,10.96,139.83,139.8,0.04910242]
[1723846699392,3.5749,139.82,139.8,0.04910242]
[1723846700191,3.5749,139.82,139.8,3.62440242]
[1723846704994,15.32,139.83,139.76,4.36]
[1723846705193,10.96,139.78,139.72,10.96]
[1723846705908,3.5762,139.77,139.74,3.5766]
[1723846706109,3.62452812,139.77,139.74,3.6307596]
[1723846707200,14.58452812,139.77,139.74,3.6307596]
[1723846707501,3.5763,139.76,139.74,3.6307596]
[1723846707703,10.96,139.76,139.74,0.0541596]
[1723846708092,3.5766,139.75,139.74,0.0541596]
[1723846708901,3.5764,139.76,139.74,0.0541596]
[1723846715506,3.5766,139.75,139.74,0.0541596]
[1723846715909,0.04832812,139.77,139.74,0.0541596]
[1723846716113,0.04832812,139.77,139.74,11.0141596]
[1723846716415,0.04832812,139.77,139.76,14.5363]
[1723846717509,15.32,139.82,139.76,14.5363]
[1723846717510,4.36,139.82,139.76,14.54108917]
[1723846717714,4.36,139.84,139.78,10.96]
[1723846718512,3.5746,139.83,139.8,3.62979326]
[1723846718817,0.05371403,139.82,139.8,3.62979326]
[1723846719820,3.62851403,139.82,139.8,0.05449326]
[1723846721517,3.575,139.81,139.8,0.05449326]
[1723846723421,3.62871403,139.82,139.8,0.05449326]
[1723846724111,3.575,139.81,139.8,0.05449326]
[1723846724305,0.05371403,139.82,139.8,0.05449326]
[1723846725322,3.62861403,139.82,139.8,3.62979326]
[1723846725518,0.05371403,139.82,139.8,0.05449326]
[1723846725726,0.05371403,139.82,139.8,11.01449326]
[1723846726117,0.05371403,139.82,139.81,3.575]
[1723846740728,11.01371403,139.82,139.8,0.05449326]
[1723846741033,0.05371403,139.82,139.8,0.05449326]
[1723846741240,3.62861403,139.82,139.8,0.05449326]
[1723846742130,0.05371403,139.82,139.8,3.62969326]
[1723846742337,0.05371403,139.82,139.8,0.05449326]
[1723846743833,0.05371403,139.82,139.81,3.575]
[1723846744431,0.05371403,139.82,139.81,14.535]
[1723846744629,0.05371403,139.82,139.81,3.575]
[1723846744840,0.05371403,139.82,139.81,14.535]
[1723846746135,4.36,139.87,139.81,10.96]
[1723846746332,4.36,139.87,139.85,3.574]
[1723846746930,3.5733,139.88,139.85,3.574]
[1723846747335,3.5733,139.88,139.85,3.62010117]
[1723846747336,3.62434487,139.88,139.85,3.62010117]
[1723846749432,3.62434487,139.88,139.86,3.5738]
[1723846749641,0.05104487,139.88,139.85,11.00610117]
[1723846750739,0.05104487,139.88,139.87,3.5735]
[1723846750938,243.8461,140.05,139.86,10.96]
[1723846750939,7.85484747,139.97,139.86,54.8]
[1723846751239,10.96,139.96,139.9,10.96]
[1723846751446,8.00566306,139.97,139.9,10.96]
[1723846751745,2.6506,139.98,139.92,10.96]
[1723846752050,0.05017837,139.96,139.94,3.62308944]
[1723846756147,3.62137837,139.96,139.94,3.62308944]
[1723846756544,0.05017837,139.96,139.94,3.62308944]
[1723846758653,3.62147837,139.96,139.94,3.62308944]
[1723846758855,0.05017837,139.96,139.94,0.05138944]
[1723846760055,0.05017837,139.96,139.94,3.62298944]
[1723846761357,0.05017837,139.96,139.95,3.5715]
[1723846764260,3.62137837,139.96,139.94,0.05138944]
[1723846772462,14.5315,139.95,139.94,0.05138944]
[1723846773257,3.5715,139.95,139.94,0.05138944]
[1723846782168,4.41017837,139.96,139.94,0.05138944]
[1723846782378,0.05017837,139.96,139.95,10.96]
[1723846782677,0.05017837,139.96,139.95,14.5315]
[1723846784570,0.05017837,139.96,139.95,3.5715]
[1723846784871,0.05017837,139.96,139.95,14.5315]
[1723846787278,0.05017837,139.96,139.95,3.5715]
[1723846787569,0.05017837,139.96,139.95,14.5315]
[1723846790066,11.507,140.02,139.96,3.5712]
[1723846790067,3.5705,139.99,139.96,3.5712]
[1723846790269,3.5705,139.99,139.97,10.96]
[1723846790969,3.61754651,139.99,139.97,11.01209689]
[1723846794179,3.61754651,139.99,139.97,14.58309689]
[1723846798376,0.04704651,139.99,139.97,14.58309689]
[1723846802473,3.61754651,139.99,139.97,0.05209689]
[1723846802781,0.04704651,139.99,139.97,0.05209689]
[1723846803273,3.5707,139.98,139.97,0.05209689]
[1723846803488,11.00704651,139.99,139.92,10.96]
[1723846803778,11.00704651,139.99,139.92,14.5321]
[1723846803779,3.5716,139.95,139.92,14.5321]
[1723846804280,3.5719,139.94,139.91,3.5724]
[1723846804777,3.62157462,139.94,139.92,0.05340892]
[1723846805079,3.572,139.93,139.92,0.05340892]
[1723846805683,3.62147462,139.94,139.92,0.05340892]
[1723846806174,3.572,139.93,139.92,0.05340892]
[1723846806471,0.04967462,139.94,139.92,11.01340892]
[1723846807575,4.36,140.02,139.93,54.8]
[1723846807966,4.36,140.02,139.97,10.96]
[1723846808173,3.5704,140.0,139.97,10.96]
[1723846808567,3.62515116,140.0,139.97,11.01005591]
[1723846808974,3.62515116,140.0,139.97,14.58095591]
[1723846809675,0.05475116,140.0,139.97,11.01005591]
[1723846810481,0.05475116,140.0,139.98,3.5705]
[1723846811581,3.62495116,140.0,139.98,3.5705]
[1723846813181,3.5705,139.99,139.97,0.05005591]
[1723846813575,0.05475116,140.0,139.97,3.62095591]
[1723846813775,3.62505116,140.0,139.97,3.62095591]
[1723846817389,7.147,139.99,139.83,28.43484901]
[1723846817574,4.36,139.98,139.92,10.96]
[1723846818282,3.5711,139.97,139.93,3.5718]
[1723846818471,0.04656845,139.96,139.94,0.05400808]
[1723846819172,3.61776845,139.96,139.94,3.62570808]
[1723846821184,0.04656845,139.96,139.94,3.62570808]
[1723846821389,0.04656845,139.96,139.94,0.05400808]
[1723846822788,0.04656845,139.96,139.94,3.62560808]
[1723846825595,3.61786845,139.96,139.94,0.05400808]
[1723846825891,0.04656845,139.96,139.94,11.01400808]
[1723846826488,0.04656845,139.96,139.94,14.58570808]
[1723846830396,3.61776845,139.96,139.94,11.01400808]
[1723846833507,0.04656845,139.96,139.95,3.5715]
[1723846833694,0.04656845,139.96,139.95,14.5315]
[1723846834395,0.04656845,139.96,139.94,0.05400808]
[1723846834702,3.5715,139.95,139.94,0.05400808]
[1723846835490,3.61796845,139.96,139.94,0.05400808]
[1723846835691,3.61796845,139.96,139.94,11.01400808]
[1723846837391,3.5715,139.95,139.94,11.01400808]
[1723846837588,0.04656845,139.96,139.94,11.01400808]
[1723846838104,3.61786845,139.96,139.94,14.58570808]
[1723846839104,0.04656845,139.96,139.94,14.58570808]
[1723846840207,0.04656845,139.96,139.95,14.5315]
[1723846848407,0.04656845,139.96,139.95,3.5715]
[1723846848707,0.04656845,139.96,139.94,14.58560808]
[1723846849902,0.04656845,139.96,139.95,3.5715]
[1723846850201,0.04656845,139.96,139.95,14.5315]
[1723846854220,90.07262554,140.07,139.95,14.5315]
[1723846854221,81.60499844,140.04,139.95,10.96]
[1723846854410,81.60499844,140.04,139.93,43.84]
[1723846854411,4.36,140.04,140.0,10.96]
[1723846854720,7.9293,140.04,140.01,3.5698]
[1723846855419,7.97477259,140.04,140.01,3.61536573]
[1723846855806,4.40547259,140.04,140.02,3.5696]
[1723846856011,0.04547259,140.04,140.02,3.5696]
[1723846859706,0.04547259,140.04,140.01,14.57536573]
[1723846860118,0.04547259,140.04,140.01,11.00556573]
[1723846860921,0.04547259,140.04,140.02,3.5696]
[1723846864920,0.04547259,140.04,140.02,3.5697]
[1723846865516,0.04547259,140.04,140.03,14.5294]
[1723846865818,1.2841,140.13,140.03,10.96]
[1723846866125,4.34,140.14,140.11,10.96]
[1723846866421,4.34,140.14,140.07,43.84]
[1723846866422,4.34,140.17,140.13,10.96]
[1723846866611,4.34,140.17,140.14,10.96]
[1723846867116,0.04670251,140.16,140.14,11.00532944]
[1723846867714,3.61300251,140.16,140.14,11.00532944]
[1723846868420,0.04670251,140.16,140.14,14.57192944]
[1723846870829,0.04670251,140.16,140.14,0.04532944]
[1723846871416,3.5664,140.15,140.14,0.04532944]
[1723846876718,3.5675,140.11,140.08,5.6811]
[1723846876923,3.63212679,140.14,140.08,16.6411]
[1723846877226,10.96,140.15,140.08,15.3]
[1723846877421,10.96,140.15,140.09,3.5679]
[1723846877422,3.5673,140.12,140.09,3.5679]
[1723846878026,3.61403906,140.12,140.09,3.61690002]
[1723846879123,3.61403906,140.12,140.1,3.5676]
[1723846879124,0.04673906,140.12,140.1,3.5676]
[1723846883829,0.04673906,140.12,140.11,10.96]
[1723846884328,0.04673906,140.12,140.11,14.5274]
[1723846885318,0.04673906,140.12,140.09,0.04900002]
[1723846885924,3.5676,140.1,140.09,0.04900002]
[1723846886726,3.5675,140.11,140.09,0.04900002]
[1723846888431,3.5676,140.1,140.09,0.04900002]
[1723846891337,3.5675,140.11,140.09,0.04900002]
[1723846892540,3.5676,140.1,140.09,0.04900002]
[1723846893744,3.20828328,140.1,140.09,0.04900002]
[1723846900635,3.5685,140.07,140.04,3.5691]
[1723846900840,3.5685,140.07,140.05,10.96]
[1723846901844,3.61511188,140.07,140.05,11.01429236]
[1723846907350,3.5687,140.06,140.05,11.01429236]
[1723846907755,3.5687,140.06,140.05,0.05429236]
[1723846913359,3.61511188,140.07,140.05,11.01429236]
[1723846914652,0.04661188,140.07,140.05,14.58319236]
[1723846915061,0.04661188,140.07,140.05,11.01429236]
[1723846918160,0.04661188,140.07,140.06,10.96]
[1723846918364,1.363,140.13,140.06,10.96]
[1723846918569,1.3415,140.16,140.1,10.96]
[1723846918750,5.6815,140.16,140.1,10.96]
[1723846919258,5.6815,140.16,140.11,10.96]
[1723846919467,0.04528148,140.14,140.12,0.05412123]
[1723846919664,3.5669,140.13,140.12,0.05412123]
[1723846921467,3.61198148,140.14,140.12,0.05412123]
[1723846921764,0.04528148,140.14,140.12,0.05412123]
[1723846921952,11.00528148,140.14,140.12,0.05412123]
[1723846922263,3.48946601,140.13,140.12,0.05412123]
[1723846922467,11.00528148,140.14,140.12,0.05412123]
[1723846922763,11.00528148,140.14,140.08,10.96]
[1723846922764,10.96,140.13,140.06,1.3446]
[1723846923064,11.486,140.12,140.06,12.3046]
[1723846923269,3.568,140.09,140.06,12.3046]
[1723846923559,3.568,140.09,140.06,10.96]
[1723846923869,3.62192466,140.09,140.06,14.57434359]
[1723846924064,3.5682,140.08,140.06,11.00564359]
[1723846927869,3.62192466,140.09,140.06,14.57424359]
[1723846929361,0.05392466,140.09,140.07,14.5284]
[1723846930371,0.05392466,140.09,140.08,3.5682]
[1723846931086,0.05392466,140.09,140.07,14.5283]
[1723846933870,0.05392466,140.09,140.06,0.04564359]
[1723846934068,0.05392466,140.09,140.06,11.00564359]
[1723846934469,3.62202466,140.09,140.06,11.00564359]
[1723846936171,3.5682,140.08,140.06,11.00564359]
[1723846937178,3.5682,140.08,140.06,0.04564359]
[1723846937383,3.5684,140.07,140.06,0.04564359]
[1723846942473,0.05392466,140.09,140.06,11.00564359]
[1723846942675,0.05392466,140.09,140.07,10.96]
[1723846942878,0.05392466,140.09,140.07,14.5283]
[1723846943083,0.05392466,140.09,140.07,10.96]
[1723846944282,3.62182466,140.09,140.06,11.00564359]
[1723846944883,3.62182466,140.09,140.06,0.04564359]
[1723846945083,3.62182466,140.09,140.06,11.00564359]
[1723846946483,3.62182466,140.09,140.06,14.57434359]
[1723846952186,0.05392466,140.09,140.06,11.00564359]
[1723846952488,0.05392466,140.09,140.07,10.96]
[1723846953792,0.05392466,140.09,140.08,3.5682]
[1723846955093,73.47598496,140.15,140.11,3.5674]
[1723846955584,3.5667,140.14,140.11,3.5674]
[1723846956293,3.61751288,140.14,140.11,3.61355931]
[1723846956483,3.5671,140.12,140.11,0.04615931]
[1723846956686,0.05081288,140.14,140.11,0.04615931]
[1723846957086,0.05081288,140.14,140.11,3.61345931]
[1723846957087,3.567,140.13,140.11,3.61345931]
[1723846957284,3.567,140.13,140.11,14.57345931]
[1723846958186,3.61751288,140.14,140.11,14.57345931]
[1723846963498,3.61751288,140.14,140.12,3.5671]
[1723846964107,0.05081288,140.14,140.12,3.5671]
[1723846964397,0.05081288,140.14,140.11,14.57345931]
[1723846964890,3.61741288,140.14,140.11,14.57345931]
[1723846965404,0.05081288,140.14,140.13,10.96]
[1723846966295,0.05081288,140.14,140.13,14.5269]
[1723846967296,3.5658,140.18,140.14,3.5664]
[1723846967496,3.5658,140.18,140.16,10.96]
[1723846968203,3.61604937,140.18,140.16,11.01029703]
[1723846968402,3.61604937,140.18,140.16,0.05029703]
[1723846971300,0.05024937,140.18,140.16,14.57639703]
[1723846971799,0.05024937,140.18,140.17,10.96]
[1723846972189,0.05024937,140.18,140.17,14.5259]
[1723846973008,4.34,140.22,140.17,10.96]
[1723846973211,239.03888387,140.28,140.21,10.96]
[1723846973212,4.34,140.25,140.21,10.96]
[1723846973392,7.146,140.24,140.21,10.96]
[1723846973604,10.7102,140.24,140.21,10.96]
[1723846973902,7.146,140.24,140.21,10.96]
[1723846974410,7.19612261,140.24,140.21,14.57738296]
[1723846975300,10.76032261,140.24,140.21,14.57738296]
[1723846975606,10.76032261,140.24,140.21,11.01258296]
[1723846976813,10.76032261,140.24,140.21,14.57738296]
[1723846978104,0.05012261,140.24,140.21,14.57738296]
[1723846978311,0.05012261,140.24,140.22,3.5646]
[1723846978900,0.05012261,140.24,140.21,14.57728296]
[1723846979616,0.05012261,140.24,140.22,3.5645]
[1723846980316,0.05012261,140.24,140.21,14.57728296]
[1723846981505,0.05012261,140.24,140.22,3.5645]
[1723846982302,0.05012261,140.24,140.23,10.96]
[1723846982706,0.05012261,140.24,140.23,14.5243]
[1723846985409,3.5629,140.29,140.26,3.5636]
[1723846985617,3.5629,140.29,140.27,10.96]
[1723846986207,4.34,140.32,140.28,10.96]
[1723846986599,3.59120342,140.31,140.29,0.04784335]
[1723846987003,0.02890342,140.31,140.29,0.04784335]
[1723846987306,3.5626,140.3,140.29,0.04784335]
[1723846987513,0.02890342,140.31,140.29,0.04784335]
[1723846987713,3.59130342,140.31,140.29,0.04784335]
[1723846989409,3.5626,140.3,140.29,0.04784335]
[1723846989612,18.106,140.3,140.22,1.2901]
[1723846989814,18.106,140.3,140.23,10.96]
[1723846990111,18.106,140.3,140.23,14.5241]
[1723846990112,3.5635,140.27,140.23,14.5241]
[1723846990317,7.146,140.28,140.19,4.34]
[1723846990517,7.146,140.28,140.21,10.96]
[1723846990714,3.61464594,140.26,140.22,3.5645]
[1723846991012,3.61464594,140.26,140.23,0.04789224]
[1723846991718,0.05084594,140.26,140.23,0.04789224]
[1723846992216,3.5639,140.25,140.23,0.04789224]
[1723846993613,3.61454594,140.26,140.23,11.00789224]
[1723846994008,0.05084594,140.26,140.23,11.00789224]
[1723846995721,3.564,140.25,140.23,11.00789224]
[1723846998119,3.564,140.25,140.23,0.04789224]
[1723847002914,3.5641,140.24,140.23,0.04789224]
[1723847003113,0.05084594,140.26,140.23,11.00789224]
[1723847003313,0.05084594,140.26,140.25,10.96]
[1723847004613,3.61454594,140.26,140.25,10.96]
[1723847005922,7.146,140.31,140.25,10.96]
[1723847006134,7.146,140.31,140.3,10.96]
[1723847006422,3.5626,140.3,140.29,10.96]
[1723847006623,7.146,140.31,140.29,10.96]
[1723847007024,3.58840083,140.31,140.29,11.01248887]
[1723847008617,3.5626,140.3,140.29,0.05248887]
[1723847016632,3.5634,140.27,140.25,10.96]
[1723847017024,3.5632,140.28,140.25,10.96]
[1723847017626,3.60853413,140.28,140.25,11.01112085]
[1723847020438,0.04533413,140.28,140.25,0.05112085]
[1723847020636,18.15133413,140.28,140.25,0.05112085]
[1723847020938,3.5636,140.26,140.25,0.05112085]
[1723847022629,3.5644,140.23,140.21,10.96]
[1723847023642,18.106,140.22,140.06,7.137]
[1723847023830,18.106,140.22,140.21,0.05360712]
[1723847024142,3.5654,140.19,140.17,10.96]
[1723847025228,3.61328715,140.19,140.17,11.01074253]
[1723847026246,7.146,140.26,140.18,10.96]
[1723847026429,11.526,140.26,140.22,10.96]
[1723847027243,0.04721578,140.25,140.23,0.05216113]
[1723847027840,3.61111578,140.25,140.23,0.05216113]
[1723847028246,3.5641,140.24,140.23,0.05216113]
[1723847028544,18.106,140.24,140.18,10.96]
[1723847028840,10.96,140.23,140.17,10.96]
[1723847029232,4.38,140.22,140.17,10.96]